bitfinex-derivatives/quotes_ETHF0:USTF0_20260315
["timestamp","ask_amount","ask_price","bid_price","bid_amount"]
[1773542380629,0.56491978,2093.3,2092.7,0.62034892]
[1773542388041,0.56491978,2093.4,2092.7,0.62034892]
[1773542396540,12.35365313,2093.5,2092.7,0.62034892]
[1773542396541,4.01499807,2093.5,2092.7,0.62034892]
[1773542396740,12.72539113,2093.8,2092.8,0.56819027]
[1773542397141,12.72539113,2093.8,2092.8,6.54915949]
[1773542397349,12.72539113,2093.8,2092.9,0.56819027]
[1773542398242,8.71039306,2093.8,2092.9,0.56819027]
[1773542399849,0.57039306,2093.7,2093.0,0.56819027]
[1773542400148,0.57617633,2093.9,2093.0,0.56819027]
[1773542403745,0.00578327,2093.9,2093.0,0.56819027]
[1773542405756,0.57617633,2093.9,2093.0,0.56819027]
[1773542412157,2.40250105,2093.9,2093.0,0.56819027]
[1773542412360,0.54439924,2093.8,2093.0,0.56819027]
[1773542420563,0.54439924,2093.8,2092.8,0.56819027]
[1773542420564,0.5315207,2093.5,2092.8,0.56819027]
[1773542427571,2.31503386,2093.4,2092.8,0.56819027]
[1773542428365,2.31503386,2093.6,2092.8,0.56819027]
[1773542428972,0.48886169,2093.5,2092.8,0.56819027]
[1773542429171,0.48886169,2093.7,2093.0,0.53948114]
[1773542429364,0.48886169,2093.8,2093.0,0.53948114]
[1773542437387,2.33507474,2093.7,2093.0,0.53948114]
[1773542445295,0.53953112,2093.6,2093.0,0.53948114]
[1773542461103,0.53953112,2093.6,2092.9,6.56176406]
[1773542461309,0.53528447,2093.4,2092.9,0.58079484]
[1773542464906,4.01499807,2093.8,2093.2,0.58079484]
[1773542465112,0.00578327,2093.9,2093.2,0.58079484]
[1773542465806,0.00578327,2093.9,2093.3,1.82612865]
[1773542466002,0.00578327,2093.9,2093.4,0.58079484]
[1773542468200,0.52885595,2093.9,2093.4,0.58079484]
[1773542468402,0.52885595,2093.9,2093.3,0.58079484]
[1773542469908,0.00578327,2093.9,2093.3,0.58079484]
[1773542474510,0.00578327,2093.9,2093.3,2.40692349]
[1773542474711,0.00578327,2093.9,2093.4,0.58079484]
[1773542475112,4.54599948,2094.3,2093.6,0.58079484]
[1773542475308,12.23299807,2094.4,2093.6,0.58079484]
[1773542475513,7.63457744,2094.6,2093.2,5.98096922]
[1773542475514,4.55178275,2094.5,2093.8,0.58079484]
[1773542475713,0.53678468,2094.5,2093.8,0.58079484]
[1773542476109,0.54105521,2094.5,2093.8,0.58079484]
[1773542479317,0.00427053,2094.5,2093.8,0.58079484]
[1773542481820,0.54842401,2094.5,2093.8,0.58079484]
[1773542482019,0.54415348,2094.4,2093.8,0.58079484]
[1773542483323,0.54349156,2094.2,2093.8,0.58079484]
[1773542483522,0.54349156,2094.2,2093.6,0.54003506]
[1773542486123,1.83039918,2094.5,2093.6,0.54003506]
[1773542486324,0.54401407,2094.5,2093.6,0.54003506]
[1773542487022,0.00427053,2094.5,2093.6,0.54003506]
[1773542488824,0.53688539,2094.2,2093.6,0.54003506]
[1773542489024,2.36301404,2094.3,2093.6,0.54003506]
[1773542489624,0.53688539,2094.3,2093.6,0.54003506]
[1773542490622,0.53688539,2094.3,2093.8,0.54003506]
[1773542502141,0.55025443,2094.4,2093.8,0.54003506]
[1773542504943,0.00427053,2094.5,2093.8,0.54003506]
[1773542505142,0.55313904,2094.5,2093.8,0.54003506]
[1773542509947,0.54831507,2094.4,2093.8,0.54003506]
[1773542510248,0.54831507,2094.4,2093.6,0.58152624]
[1773542511251,0.54831507,2094.2,2093.6,0.58152624]
[1773542513647,0.54587278,2094.4,2093.6,0.58152624]
[1773542519056,4.56373897,2094.5,2093.6,0.58152624]
[1773542519359,0.54447037,2094.4,2093.6,0.58152624]
[1773542520254,0.54782296,2094.5,2093.8,0.57973458]
[1773542533964,0.00427053,2094.5,2093.8,0.57973458]
[1773542538873,4.5694626,2095.1,2094.1,0.57973458]
[1773542539071,0.55446453,2095.0,2094.2,0.57973458]
[1773542539868,0.55968659,2095.0,2094.2,0.58372206]
[1773542541163,0.00522206,2095.0,2094.2,0.58372206]
[1773542541364,0.56263676,2095.0,2094.2,0.58372206]
[1773542545970,0.00522206,2095.0,2094.2,0.58372206]
[1773542548065,0.55485365,2095.0,2094.2,0.58372206]
[1773542549570,0.54887541,2094.9,2094.2,0.58372206]
[1773542551777,1.82860853,2095.0,2094.2,0.58372206]
[1773542552072,0.54848782,2094.9,2094.2,0.58372206]
[1773542557280,0.00522206,2095.0,2094.2,0.58372206]
[1773542557576,0.5504977,2095.3,2094.6,0.5892481]
[1773542558577,0.55591745,2095.3,2094.6,0.5892481]
[1773542560478,0.00541975,2095.3,2094.6,0.5892481]
[1773542562682,0.00541975,2095.3,2094.6,22.7152481]
[1773542562879,0.55131681,2095.2,2094.7,0.5892481]
[1773542565586,0.50834532,2095.3,2094.7,0.5892481]
[1773542570893,0.50620764,2095.2,2094.6,22.71774328]
[1773542572092,0.55930881,2095.0,2094.6,22.71774328]
[1773542572297,0.55930881,2095.0,2094.6,22.126]
[1773542572897,0.55930881,2095.0,2094.6,22.67488984]
[1773542573094,1.82338647,2095.1,2094.7,0.54888984]
[1773542573095,2.38278355,2095.1,2094.7,0.54888984]
[1773542573395,0.55939708,2095.0,2094.7,0.54888984]
[1773542581701,1.82338647,2095.1,2094.7,0.54888984]
[1773542581902,2.36649428,2095.1,2094.7,0.54888984]
[1773542582602,0.5431078,2095.0,2094.7,0.54888984]
[1773542583704,0.5431078,2095.0,2094.6,0.54888984]
[1773542586807,0.5431078,2095.0,2094.5,0.54888984]
[1773542595412,4.5506931,2095.3,2094.6,0.54888984]
[1773542595613,3.99881553,2095.6,2094.8,0.54888984]
[1773542595815,0.54593297,2095.6,2095.0,0.54888984]
[1773542596709,0.55011735,2095.6,2095.0,0.54888984]
[1773542599021,0.56051967,2095.3,2094.9,0.54888984]
[1773542600721,0.56051967,2095.3,2094.7,22.653]
[1773542600922,0.56051967,2095.3,2094.8,0.54888984]
[1773542601324,0.56051967,2095.3,2094.7,23.20188984]
[1773542602620,0.52349821,2095.1,2094.5,0.58592258]
[1773542605423,0.52577697,2095.0,2094.5,0.58592258]
[1773542609022,0.51811362,2094.8,2094.3,23.31592258]
[1773542609226,0.51811362,2094.8,2094.3,0.58592258]
[1773542618535,0.51811362,2094.8,2094.2,0.00398748]
[1773542618734,0.51811362,2094.8,2094.2,0.58991006]
[1773542621035,0.51811362,2094.8,2094.2,0.00398748]
[1773542622343,0.51811362,2094.8,2094.1,0.58592258]
[1773542623238,0.51811362,2094.8,2094.1,0.59197054]
[1773542625333,0.51811362,2094.8,2094.1,0.00604796]
[1773542625932,0.51811362,2094.8,2094.1,0.59197054]
[1773542626530,0.53872763,2094.7,2094.1,0.59197054]
[1773542634133,0.54097101,2094.6,2093.8,0.59099081]
[1773542635139,0.54097101,2094.6,2093.8,0.59547684]
[1773542635843,0.54097101,2094.6,2093.5,0.59099081]
[1773542636038,0.5971482,2094.4,2093.5,0.59099081]
[1773542636936,0.5971482,2094.4,2093.5,0.59673722]
[1773542649254,5.252,2098.0,2094.2,1.82364475]
[1773542649255,4.00190266,2094.9,2094.2,1.82364475]
[1773542649462,0.5971482,2095.1,2094.1,5.98096922]
[1773542650058,0.5971482,2095.1,2094.0,5.98096922]
[1773542650360,0.5971482,2095.1,2094.1,5.98096922]
[1773542650559,0.5971482,2095.1,2094.2,0.00481117]
[1773542652954,0.24199231,2095.6,2094.6,0.00288106]
[1773542652955,0.00418438,2095.6,2094.6,0.00288106]
[1773542653158,0.5971482,2095.5,2094.6,0.00288106]
[1773542653458,0.5971482,2095.5,2094.8,0.00288106]
[1773542658160,20.01880892,2098.9,2094.7,40.8]
[1773542658161,0.5971482,2095.8,2094.9,1.82364475]
[1773542659162,0.00387744,2095.8,2095.0,22.469]
[1773542659358,0.00387744,2095.8,2095.0,22.47361766]
[1773542664171,0.60595061,2095.8,2095.0,22.47361766]
[1773542667276,0.00387744,2095.8,2095.0,22.47361766]
[1773542670178,0.60794558,2095.8,2095.0,22.47361766]
[1773542671584,0.60794558,2095.8,2095.2,1.82134839]
[1773542673284,1.82134839,2096.3,2095.2,1.82134839]
[1773542673479,1.90440695,2096.8,2096.0,1.82134839]
[1773542673480,0.60354949,2096.8,2096.0,1.82134839]
[1773542673885,0.60354949,2096.8,2096.0,42.62134839]
[1773542674480,0.60939096,2096.8,2096.0,42.62134839]
[1773542678483,5.47266863,2097.9,2096.2,1.82134839]
[1773542678690,0.60467294,2098.6,2097.5,1.82134839]
[1773542678888,0.60467294,2098.4,2097.6,22.655]
[1773542679390,0.60467294,2098.4,2097.7,40.8]
[1773542679689,0.61008183,2098.4,2097.7,40.80456202]
[1773542679890,5.47266863,2098.3,2097.7,40.80456202]
[1773542680088,0.61008183,2098.4,2097.7,40.80456202]
[1773542680287,6.08275046,2098.4,2097.7,40.80456202]
[1773542680488,0.61008183,2098.4,2097.7,42.62591041]
[1773542680692,0.59753376,2098.6,2097.7,42.62591041]
[1773542680885,5.47266863,2098.5,2097.7,42.62591041]
[1773542681091,0.59753376,2099.0,2097.9,1.82134839]
[1773542681287,5.47266863,2098.7,2098.1,1.82134839]
[1773542681493,0.59753376,2098.8,2098.2,22.527]
[1773542681787,5.47266863,2098.6,2098.3,0.01310098]
[1773542681979,0.34580402,2100.2,2098.6,0.11372236]
[1773542682384,0.54939304,2100.0,2098.8,0.31731138]
[1773542682580,0.54939304,2100.0,2098.9,22.101]
[1773542682783,0.54939304,2100.0,2098.9,22.44229722]
[1773542682980,0.54939304,2099.5,2098.9,0.34129722]
[1773542683185,0.54939304,2099.5,2098.9,22.31129722]
[1773542683383,6.02206167,2099.4,2099.0,0.34129722]
[1773542683586,0.54939304,2099.4,2099.0,0.34129722]
[1773542683790,0.54939304,2099.9,2099.0,0.34129722]
[1773542683988,0.54939304,2099.7,2099.0,0.34129722]
[1773542684890,5.47266863,2099.6,2099.0,0.34129722]
[1773542685087,0.54939304,2101.5,2099.0,0.34129722]
[1773542685289,0.33846666,2102.9,2101.4,2.65659396]
[1773542685591,0.59547272,2104.0,2102.6,0.00086671]
[1773542685786,0.59547272,2104.0,2102.8,0.00086671]
[1773542685990,0.87724007,2103.9,2102.9,0.00086671]
[1773542686187,0.2822007,2104.5,2103.4,0.00086671]
[1773542686388,0.59503937,2104.7,2103.0,0.00086671]
[1773542686595,0.59503937,2104.4,2102.9,0.00506036]
[1773542686983,0.61409595,2103.7,2102.9,0.00506036]
[1773542687187,0.00456732,2103.7,2102.9,0.00506036]
[1773542687389,0.2822007,2103.6,2102.9,0.00506036]
[1773542687590,0.00456732,2103.7,2102.9,0.00506036]
[1773542687889,0.54939304,2105.2,2103.1,0.10651738]
[1773542688089,0.54939304,2104.4,2103.1,20.58851738]
[1773542688294,0.54939304,2104.4,2103.1,0.10651738]
[1773542688591,6.18520841,2105.3,2103.1,0.10651738]
[1773542688592,0.54939304,2104.0,2103.1,0.10651738]
[1773542688796,0.55357998,2104.0,2103.1,0.10651738]
[1773542689089,0.54939304,2103.6,2102.4,0.09997748]
[1773542689289,0.54939304,2103.6,2102.2,0.09997748]
[1773542689491,0.24179694,2104.0,2102.2,0.09997748]
[1773542689492,0.5927626,2103.3,2102.2,0.09997748]
[1773542689693,0.5927626,2103.3,2102.4,0.10598533]
[1773542690096,5.81113529,2103.0,2102.4,0.1120818]
[1773542690296,0.5927626,2103.9,2102.4,0.1120818]
[1773542690492,0.5927626,2103.5,2102.4,0.1120818]
[1773542690998,0.00418694,2104.0,2102.6,0.10866464]
[1773542691202,0.00418694,2104.0,2102.8,0.10866464]
[1773542691698,0.55587431,2104.0,2102.8,0.10866464]
[1773542692395,0.55168737,2103.9,2102.9,20.89678224]
[1773542692599,0.55168737,2103.9,2102.9,0.15278224]
[1773542692897,5.81113529,2103.7,2102.9,0.15278224]
[1773542693097,0.55168737,2103.9,2102.9,0.15278224]
[1773542693596,0.55168737,2103.9,2102.7,20.7]
[1773542693597,0.55168737,2103.6,2102.8,0.15177236]
[1773542693897,0.55168737,2103.5,2102.8,0.15177236]
[1773542694495,6.36282266,2103.5,2102.8,0.15177236]
[1773542694895,0.55168737,2103.5,2102.8,0.15177236]
[1773542695094,0.55168737,2103.4,2102.8,0.15177236]
[1773542695298,0.55168737,2103.4,2102.4,0.16639032]
[1773542695696,0.55168737,2103.2,2102.4,0.16639032]
[1773542696097,6.36282266,2103.2,2102.4,0.16639032]
[1773542696498,0.55168737,2103.2,2102.4,0.16639032]
[1773542696991,6.36282266,2103.2,2102.4,0.16639032]
[1773542697195,0.55168737,2103.2,2102.4,0.16639032]
[1773542697400,6.36282266,2103.2,2102.4,0.16639032]
[1773542697599,0.55168737,2103.1,2102.4,0.16639032]
[1773542698399,5.81113529,2103.0,2102.4,0.16639032]
[1773542698598,0.55168737,2102.9,2102.4,0.00609647]
[1773542698798,0.55168737,2103.6,2102.0,0.16660726]
[1773542698993,0.55587431,2104.0,2102.6,0.16660726]
[1773542699196,0.55168737,2104.5,2103.0,0.16660726]
[1773542699398,0.55168737,2104.5,2103.2,0.16242032]
[1773542700101,0.55168737,2104.4,2103.2,0.16242032]
[1773542700402,0.55567138,2104.4,2103.2,0.0047983]
[1773542700600,0.55168737,2103.5,2102.7,40.8]
[1773542700802,0.55168737,2103.5,2102.4,0.17985062]
[1773542701001,0.55168737,2103.3,2102.2,21.66785062]
[1773542701201,0.55168737,2103.3,2102.3,0.17985062]
[1773542701598,0.55168737,2103.2,2102.3,0.17985062]
[1773542701801,0.55168737,2103.2,2102.3,0.18363954]
[1773542701998,6.36282266,2103.2,2102.3,0.18363954]
[1773542702299,0.55168737,2103.2,2102.3,0.18363954]
[1773542702498,0.55168737,2104.2,2102.3,0.18363954]
[1773542702701,0.55168737,2103.6,2102.3,0.18363954]
[1773542703096,0.55168737,2103.1,2102.3,0.18363954]
[1773542703600,5.81113529,2102.9,2102.3,0.18072606]
[1773542703794,0.00434186,2102.9,2102.3,0.18072606]
[1773542704191,5.81113529,2102.8,2102.3,0.18072606]
[1773542704591,0.00434186,2102.9,2102.3,0.18072606]
[1773542705302,5.81113529,2102.8,2102.3,0.18072606]
[1773542706300,5.81113529,2102.7,2102.3,0.18072606]
[1773542706504,0.00434186,2102.9,2102.3,0.18072606]
[1773542706804,5.81113529,2102.8,2102.3,0.18072606]
[1773542707005,0.55168737,2102.7,2102.3,0.00378892]
[1773542707201,0.55168737,2102.7,2102.1,0.17236554]
[1773542707505,6.36282266,2102.6,2102.1,0.17236554]
[1773542707708,0.55168737,2102.6,2102.1,0.17236554]
[1773542708106,0.55168737,2102.6,2102.1,0.17695957]
[1773542708303,5.81113529,2102.4,2102.1,0.00459403]
[1773542708606,5.81113529,2102.4,2102.0,22.428]
[1773542708802,5.81113529,2102.3,2102.0,22.428]
[1773542709003,0.55168737,2102.6,2102.0,21.33931184]
[1773542709401,5.81113529,2102.2,2102.0,21.34398931]
[1773542709606,0.55168737,2102.4,2101.7,0.18616932]
[1773542709800,0.55168737,2102.8,2101.7,0.18616932]
[1773542710004,0.55168737,2102.6,2101.7,0.18616932]
[1773542710506,0.55168737,2102.4,2101.7,0.18616932]
[1773542710701,0.55168737,2102.4,2101.7,0.0043842]
[1773542710907,6.36282266,2102.0,2101.6,22.164]
[1773542711107,0.55168737,2102.0,2101.6,22.35355938]
[1773542711502,0.23775,2102.8,2101.6,22.35355938]
[1773542711503,0.55168737,2102.2,2101.6,22.35355938]
[1773542711805,0.55168737,2104.1,2102.4,0.18988749]
[1773542712004,0.55168737,2103.9,2102.6,0.18988749]
[1773542712408,6.632,2104.6,2102.4,22.10488749]
[1773542712409,5.79524025,2103.2,2102.4,22.10488749]
[1773542712708,0.55168737,2103.1,2102.4,21.933]
[1773542712903,6.35220639,2103.1,2102.4,0.00349852]
[1773542713107,0.55168737,2102.9,2102.4,0.00349852]
[1773542713798,0.00434186,2102.8,2102.4,0.00349852]
[1773542714001,5.79524025,2102.6,2102.4,0.00349852]
[1773542714205,5.79524025,2102.6,2102.0,22.002]
[1773542714206,0.55168737,2102.6,2102.0,22.002]
[1773542714401,0.55168737,2102.4,2101.7,0.1907158]
[1773542714601,0.55602923,2103.0,2101.7,0.1907158]
[1773542715009,5.79524025,2102.6,2101.7,0.1907158]
[1773542715211,5.79524025,2102.6,2101.9,4.11843963]
[1773542715510,5.79524025,2102.5,2101.9,4.11843963]
[1773542715711,0.55602923,2102.6,2101.9,4.11843963]
[1773542716006,6.34692762,2102.6,2101.9,4.11843963]
[1773542716207,0.00434186,2102.5,2101.9,4.11843963]
[1773542716406,0.55602923,2102.5,2101.9,4.11843963]
[1773542716600,5.79524025,2102.2,2102.0,0.18992425]
[1773542716799,0.00434186,2102.5,2102.0,0.18992425]
[1773542717004,5.69096946,2102.2,2102.0,0.18992425]
[1773542717407,0.00527877,2103.1,2102.1,0.19404582]
[1773542717602,0.55696614,2103.1,2102.4,3.92202165]
[1773542717803,0.55696614,2103.1,2102.3,3.92202165]
[1773542717999,6.24265683,2102.7,2102.3,3.92202165]
[1773542718202,0.55168737,2102.6,2102.1,3.92202165]
[1773542718406,0.55168737,2102.6,2101.9,26.60902165]
[1773542718604,0.55168737,2102.6,2102.0,4.11555786]
[1773542719101,5.48562309,2102.3,2102.1,0.19202447]
[1773542719306,0.59418414,2102.8,2102.1,0.19202447]
[1773542719506,5.48562309,2102.6,2102.1,0.19202447]
[1773542719705,0.59418414,2102.8,2102.1,0.19202447]
[1773542719902,0.59418414,2102.8,2102.1,4.11404612]
[1773542720105,5.48562309,2102.5,2102.1,3.92202165]
[1773542720304,0.59418414,2102.8,2102.1,3.92202165]
[1773542720508,8.77e-06,2103.1,2102.3,3.92202165]
[1773542720807,0.5939659,2103.8,2102.9,3.92202165]
[1773542721001,0.5939659,2103.8,2102.6,4.15978165]
[1773542721504,6.07968746,2103.1,2102.8,3.92202165]
[1773542721709,0.23757,2104.4,2102.4,3.92202165]
[1773542721710,0.59406437,2103.0,2102.4,3.92202165]
[1773542721909,0.59812174,2103.0,2102.4,3.92202165]
[1773542722111,0.59812174,2103.0,2102.1,26.90502165]
[1773542722512,5.48562309,2102.3,2102.1,26.90502165]
[1773542722713,0.59503562,2102.6,2102.1,26.90502165]
[1773542722911,5.0999903,2102.2,2102.1,22.983]
[1773542723114,0.59045353,2102.5,2102.1,22.983]
[1773542723506,5.0999903,2102.2,2102.1,22.983]
[1773542723711,2.50025285,2102.2,2102.1,22.983]
[1773542725218,0.5927575,2102.1,2101.7,0.00540189]
[1773542725514,0.5927575,2102.1,2101.4,0.4791182]
[1773542725710,0.5927575,2102.1,2101.2,29.57458001]
[1773542725915,0.5927575,2102.1,2101.2,23.211]
[1773542726413,0.5927575,2102.1,2101.0,0.48054753]
[1773542726617,0.5927575,2102.1,2101.0,0.48659313]
[1773542727012,0.5927575,2102.1,2101.0,0.0060456]
[1773542729211,0.54704858,2102.0,2100.8,23.33]
[1773542729713,0.50052468,2102.2,2100.4,5.88303248]
[1773542729714,0.54704858,2101.8,2100.4,0.56834751]
[1773542729917,0.54704858,2101.8,2100.3,40.8]
[1773542730216,0.54704858,2101.7,2100.3,41.3739128]
[1773542730719,0.54704858,2101.7,2100.4,0.56834751]
[1773542731611,0.54704858,2101.7,2100.5,0.56834751]
[1773542734025,0.54704858,2101.9,2100.6,0.56834751]
[1773542734322,0.54704858,2101.9,2100.8,0.56834751]
[1773542734521,0.54704858,2101.9,2101.0,0.56834751]
[1773542735824,0.54704858,2102.4,2101.0,0.56834751]
[1773542737524,0.54704858,2102.4,2101.0,24.12434751]
[1773542737724,0.54704858,2102.4,2101.1,0.56834751]
[1773542738226,0.54704858,2102.2,2100.8,0.56834751]
[1773542749430,0.62066133,2102.0,2100.8,0.56834751]
[1773542749730,0.62066133,2102.0,2100.6,0.61171854]
[1773542751329,0.62066133,2101.8,2100.4,5.88303248]
[1773542751533,0.62066133,2101.8,2100.4,0.61171854]
[1773542752333,0.61238428,2101.7,2100.4,0.61171854]
[1773542753630,0.61238428,2101.6,2100.3,40.80556529]
[1773542753839,0.61238428,2101.5,2100.4,0.61848167]
[1773542754133,0.61782201,2101.5,2100.5,0.61848167]
[1773542754536,0.61782201,2101.5,2100.7,0.61848167]
[1773542755339,0.61782201,2101.5,2100.8,0.61848167]
[1773542755932,0.00543773,2101.5,2100.8,6.50151415]
[1773542756142,0.00543773,2101.5,2100.9,0.61848167]
[1773542758944,0.61782201,2101.5,2100.9,0.61848167]
[1773542759838,0.00543773,2101.5,2100.9,0.61848167]
[1773542760038,0.61782201,2101.5,2100.9,0.61848167]
[1773542760940,0.00543773,2101.5,2100.9,0.61848167]
[1773542761140,0.61238428,2101.7,2101.0,0.61848167]
[1773542762243,0.61604362,2101.7,2100.8,6.50151415]
[1773542762439,0.61604362,2101.7,2100.9,0.61848167]
[1773542763337,0.00365934,2101.7,2100.9,6.50151415]
[1773542763540,0.61604362,2101.7,2101.0,0.61848167]
[1773542764443,0.61604362,2101.7,2101.1,0.61848167]
[1773542765437,0.00365934,2101.7,2101.1,0.61848167]
[1773542766040,0.61238428,2101.9,2101.2,0.61848167]
[1773542766941,0.6176634,2101.9,2101.2,0.61848167]
[1773542768945,0.00527912,2101.9,2101.2,0.61848167]
[1773542769144,0.00527912,2101.9,2101.3,0.61848167]
[1773542769445,0.00527912,2101.9,2101.3,6.50151415]
[1773542769645,0.00527912,2101.9,2101.4,0.61848167]
[1773542769945,0.61238428,2102.1,2101.4,0.61848167]
[1773542770440,0.61238428,2102.1,2101.3,5.88303248]
[1773542770441,3.89936382,2102.1,2100.9,0.61848167]
[1773542770645,0.61238428,2101.9,2100.9,0.61848167]
[1773542770843,0.61238428,2101.8,2100.7,0.61848167]
[1773542771350,0.61238428,2101.7,2100.7,0.61848167]
[1773542774140,0.61238428,2101.7,2100.3,64.40056529]
[1773542774141,0.61238428,2101.7,2100.5,0.61848167]
[1773542774636,0.51068096,2101.8,2100.7,0.61848167]
[1773542774844,0.61635021,2101.9,2100.7,0.61848167]
[1773542775239,0.61238428,2102.3,2101.2,0.61848167]
[1773542776242,0.61662611,2102.3,2101.2,0.61848167]
[1773542778753,0.61238428,2102.1,2100.8,0.61848167]
[1773542779653,0.61238428,2102.0,2100.8,0.61848167]
[1773542780347,0.61238428,2101.9,2100.8,0.61848167]
[1773542783246,0.51762355,2102.3,2100.3,40.80556529]
[1773542783247,0.00424183,2102.3,2101.0,0.57746177]
[1773542783446,0.57386263,2102.2,2101.2,0.57746177]
[1773542785155,0.57386263,2102.2,2101.3,3.94683096]
[1773542785353,0.57386263,2102.2,2101.4,0.57746177]
[1773542785752,0.57386263,2102.2,2101.5,0.57746177]
[1773542789656,0.00424183,2102.3,2101.5,0.57746177]
[1773542789862,0.00424183,2102.3,2101.7,0.57746177]
[1773542791058,0.06406817,2102.5,2101.8,4.52212228]
[1773542791262,0.6379308,2102.5,2101.9,0.57746177]
[1773542791966,0.64281457,2102.5,2101.9,0.58186462]
[1773542792664,0.64281457,2102.5,2101.9,0.58186462]
[1773542795560,0.57386263,2102.9,2101.9,0.58186462]
[1773542795761,0.57386263,2102.9,2102.0,0.57746177]
[1773542796659,0.57875796,2102.9,2101.9,0.00440285]
[1773542796862,0.57875796,2102.9,2101.1,12.59244062]
[1773542796863,0.03832322,2102.3,2101.6,0.70276628]
[1773542797060,0.51585914,2102.3,2101.1,0.57746177]
[1773542797459,4.49524228,2102.3,2101.1,0.57746177]
[1773542797664,0.75366914,2102.2,2101.1,0.57746177]
[1773542797865,0.75366914,2102.2,2101.1,0.58359798]
[1773542798260,0.20877967,2102.1,2101.1,0.58359798]
[1773542802377,0.1587067,2102.3,2101.1,0.58359798]
[1773542803476,0.1587067,2102.3,2101.3,0.62378476]
[1773542805882,0.66159848,2102.5,2101.3,0.62378476]
[1773542806979,0.14574004,2102.5,2101.3,0.62378476]
[1773542807479,0.14339692,2102.7,2101.3,0.62378476]
[1773542807778,0.14339692,2102.6,2101.3,0.62378476]
[1773542808980,0.14339692,2102.6,2101.4,0.62138182]
[1773542810182,0.13084674,2102.7,2101.4,0.62138182]
[1773542810481,0.13084674,2102.7,2101.5,0.67805162]
[1773542814884,0.04442634,2102.4,2101.5,0.67805162]
[1773542815175,0.04442634,2102.4,2101.1,0.00613621]
[1773542815176,0.04051679,2102.2,2101.2,0.6831978]
[1773542815880,0.04051679,2102.2,2101.1,0.68933401]
[1773542815881,0.04100742,2102.0,2101.1,0.68933401]
[1773542816081,0.55745545,2102.1,2101.1,0.68933401]
[1773542816383,0.04100742,2102.1,2101.1,0.68933401]
[1773542817485,0.0330319,2102.3,2101.1,0.68933401]
[1773542819482,3.97938314,2102.5,2101.1,0.68933401]
[1773542819483,0.02491812,2102.5,2101.1,0.68933401]
[1773542819784,3.97938314,2102.7,2101.3,0.23791]
[1773542819978,0.0269267,2102.7,2101.4,0.6831978]
[1773542821788,3.97938314,2102.8,2101.4,0.6831978]
[1773542821987,0.02372806,2102.9,2101.6,0.6831978]
[1773542822187,0.01883273,2102.8,2101.6,0.6831978]
[1773542822383,0.0149839,2102.7,2101.6,0.6831978]
[1773542822588,0.0149839,2102.7,2101.7,0.6831978]
[1773542823090,0.01727562,2102.6,2101.7,0.6831978]
[1773542826089,0.00560493,2102.7,2101.7,0.6831978]
[1773542827586,0.51976544,2102.8,2101.7,0.6831978]
[1773542827787,0.54420774,2102.8,2101.7,0.6831978]
[1773542830491,0.0244423,2102.8,2101.7,0.6831978]
[1773542830686,0.52497084,2102.9,2101.7,0.6831978]
[1773542831289,0.0119826,2102.8,2101.7,0.6831978]
[1773542831491,0.52497084,2102.9,2101.3,0.6831978]
[1773542831492,0.62990327,2102.3,2101.3,0.6831978]
[1773542831689,0.62990327,2102.2,2101.3,0.6831978]
[1773542832590,0.62990327,2102.1,2101.3,0.6831978]
[1773542835998,0.62990327,2102.1,2101.1,0.68933401]
[1773542846105,0.56984117,2102.6,2101.4,0.61156141]
[1773542846703,0.56984117,2102.5,2101.4,0.61156141]
[1773542850109,0.56984117,2102.4,2101.4,0.61156141]
[1773542852209,0.56984117,2102.3,2101.4,0.61156141]
[1773542852412,0.56984117,2102.2,2101.4,0.61156141]
[1773542852613,8.36484117,2102.2,2101.4,0.61156141]
[1773542852815,0.56984117,2102.1,2101.4,0.61156141]
[1773542860220,3.98226346,2102.4,2101.6,3.96388395]
[1773542860415,3.98715879,2102.9,2101.9,0.61156141]
[1773542860615,9.79747048,2103.5,2101.6,5.9197146]
[1773542860616,0.56984117,2103.5,2102.7,0.61156141]
[1773542860815,0.56984117,2103.7,2102.8,0.61156141]
[1773542861720,0.57449996,2103.7,2102.8,0.61668026]
[1773542863015,0.57449996,2103.7,2102.8,0.00511885]
[1773542863719,7.801,2103.6,2102.8,0.61668026]
[1773542863923,0.56984117,2103.5,2102.8,0.61668026]
[1773542864816,0.56984117,2103.5,2102.8,0.00511885]
[1773542865016,0.56984117,2103.5,2102.4,0.61156141]
[1773542866224,8.37084117,2103.4,2102.4,0.61541023]
[1773542866424,0.56984117,2103.3,2102.4,0.61541023]
[1773542869729,0.56984117,2103.3,2102.2,0.56904925]
[1773542870726,0.56984117,2103.3,2102.2,0.57376003]
[1773542871631,0.5716853,2103.1,2102.2,0.57376003]
[1773542877345,0.5716853,2103.1,2102.1,0.57186098]
[1773542878438,0.5716853,2103.1,2102.1,0.57543333]
[1773542879442,0.5716853,2103.0,2102.1,0.57543333]
[1773542879743,0.5716853,2103.0,2101.7,0.05566915]
[1773542880643,0.5716853,2103.0,2101.7,0.05991731]
[1773542882946,0.5716853,2102.8,2101.7,0.05991731]
[1773542887850,0.5716853,2102.8,2101.7,0.00424816]
[1773542888149,0.5716853,2102.8,2101.5,3.95740004]
[1773542888150,0.57347995,2102.6,2101.4,0.09210143]
[1773542889051,0.57347995,2102.6,2101.4,0.09590252]
[1773542892447,0.5716853,2102.4,2101.2,40.8]
[1773542892653,0.61047857,2102.3,2101.2,40.8]
[1773542892853,0.61072704,2102.2,2101.2,40.8]
[1773542893454,0.61072704,2102.2,2101.0,25.14340004]
[1773542893653,0.61557116,2102.2,2101.0,25.147217]
[1773542893853,0.61557116,2102.2,2101.0,65.947217]
[1773542894657,0.61557116,2102.2,2101.1,0.0009516]
[1773542895348,0.60882291,2102.1,2101.1,0.0009516]
[1773542899055,0.60882291,2102.1,2101.2,21.939]
[1773542901660,0.60882291,2102.1,2101.0,3.961217]
[1773542901861,0.60882291,2102.1,2101.1,22.142]
[1773542906564,0.60882291,2102.1,2101.1,22.387]
[1773542906959,0.60882291,2102.1,2101.0,3.961217]
[1773542907166,0.60882291,2102.1,2101.0,0.00381696]
[1773542907968,0.61456977,2102.0,2101.0,0.00381696]
[1773542915169,0.61705714,2101.9,2101.0,0.00381696]
[1773542919869,3.98226346,2102.2,2101.2,0.23792]
[1773542920070,0.61843648,2102.4,2101.7,3.95740004]
[1773542920273,0.61843648,2102.4,2101.6,3.95740004]
[1773542920470,0.61843648,2102.4,2101.7,3.95740004]
[1773542921172,0.62353973,2102.4,2101.8,0.15932679]
[1773542922674,0.60637697,2103.0,2101.8,0.15932679]
[1773542922977,0.60637697,2102.9,2101.9,0.1796027]
[1773542923774,0.61126444,2102.9,2101.9,0.1796027]
[1773542924669,0.61126444,2102.9,2102.1,0.1696031]
[1773542930176,0.63194443,2102.8,2102.1,0.1696031]
[1773542930381,0.63194443,2102.6,2101.8,0.13844893]
[1773542931180,0.63194443,2102.5,2101.8,0.13844893]
[1773542932982,0.61359175,2102.4,2101.5,0.13294807]
[1773542933383,5.97687901,2103.7,2102.4,0.36145365]
[1773542933587,0.61359175,2104.2,2103.2,0.12367365]
[1773542933879,7.47109876,2105.1,2103.4,0.13208106]